bitfinex-derivatives/quotes_BNBF0:USTF0_20250907
["timestamp","ask_amount","ask_price","bid_price","bid_amount"]
[1757242847857,0.19941836,872.6,870.41,0.19938866]
[1757242848161,0.19941836,872.6,870.42,0.75248195]
[1757242848361,0.19941836,872.6,870.43,0.75248195]
[1757242848561,0.19941836,872.6,870.44,0.75248195]
[1757242848758,0.19941836,872.6,870.45,0.75248195]
[1757242849058,0.19941836,872.6,870.46,0.75248195]
[1757242849262,0.19941836,872.6,870.47,0.75248195]
[1757242849558,0.19941836,872.6,870.48,0.75248195]
[1757242849761,0.19941836,872.6,870.49,0.75248195]
[1757242849958,0.19941836,872.6,870.41,0.19938866]
[1757242850159,0.19941836,872.6,870.42,0.75259533]
[1757242850360,0.19941836,872.6,870.43,0.75259533]
[1757242850663,0.19941836,872.6,870.41,0.19938866]
[1757242850863,2.5700206,872.36,870.41,0.19938866]
[1757242851560,2.5700206,872.34,870.41,0.19938866]
[1757242852566,2.5700206,872.33,870.41,0.19938866]
[1757242853363,2.5700206,872.32,870.41,0.19938866]
[1757242854064,2.5700206,872.19,870.41,0.19938866]
[1757242854566,2.5700206,872.18,870.41,0.19938866]
[1757242855065,2.5700206,872.2,870.41,0.19938866]
[1757242856074,2.5700206,872.22,870.41,0.19938866]
[1757242857672,0.19941836,872.6,870.41,0.19938866]
[1757242857673,2.5700206,872.21,870.41,0.19938866]
[1757242858075,2.5700206,872.17,870.41,0.19938866]
[1757242858674,2.5700206,871.93,870.41,0.19938866]
[1757242859171,2.5700206,871.91,870.41,0.19938866]
[1757242859872,2.5700206,871.9,870.41,0.19938866]
[1757242861278,2.5700206,871.89,870.41,0.19938866]
[1757242861773,2.5700206,871.9,870.41,0.19938866]
[1757242862277,2.5700206,871.89,870.41,0.19938866]
[1757242863776,2.5700206,871.84,870.41,0.19938866]
[1757242864879,2.5700206,871.8,870.41,0.19938866]
[1757242865581,2.5700206,871.81,870.41,0.19938866]
[1757242865977,2.5700206,871.78,870.41,0.19938866]
[1757242867483,2.5700206,871.89,870.41,0.19938866]
[1757242868383,2.5700206,872.01,870.41,0.19938866]
[1757242869080,2.5700206,872.0,870.41,0.19938866]
[1757242870486,2.5700206,872.01,870.41,0.19938866]
[1757242870985,2.5700206,872.03,870.41,0.19938866]
[1757242871583,2.5700206,872.05,870.41,0.19938866]
[1757242872685,2.5700206,872.06,870.41,0.19938866]
[1757242873088,2.5700206,872.07,870.41,0.19938866]
[1757242873789,2.5700206,872.09,870.41,0.19938866]
[1757242874184,2.5700206,872.1,870.41,0.19938866]
[1757242874788,2.5700206,872.09,870.41,0.19938866]
[1757242875789,2.5700206,872.1,870.41,0.19938866]
[1757242876692,2.5700206,872.12,870.41,0.19938866]
[1757242877289,2.5700206,872.08,870.41,0.19938866]
[1757242877789,3.6094735,872.49,870.41,0.19938866]
[1757242877790,2.5700206,872.09,870.41,0.19938866]
[1757242878393,2.5700206,872.08,870.41,0.19938866]
[1757242878890,2.5700206,872.07,870.41,0.19938866]
[1757242879993,2.5700206,872.09,870.41,0.19938866]
[1757242880993,2.5700206,872.05,870.41,0.19938866]
[1757242881593,2.5700206,872.03,870.41,0.19938866]
[1757242882093,2.5700206,872.04,870.41,0.19938866]
[1757242882490,2.5700206,872.03,870.41,0.19938866]
[1757242883191,2.5700206,872.02,870.41,0.19938866]
[1757242883590,2.5700206,871.99,870.41,0.19938866]
[1757242885091,2.5700206,872.0,870.41,0.19938866]
[1757242886193,2.5700206,871.99,870.41,0.19938866]
[1757242886697,2.5700206,871.96,870.41,0.19938866]
[1757242887898,2.5700206,871.87,870.41,0.19938866]
[1757242888298,3.6094735,871.98,870.41,0.19938866]
[1757242888299,2.5700206,871.67,870.41,0.19938866]
[1757242889901,2.5700206,871.61,870.41,0.19938866]
[1757242890297,2.5700206,871.59,870.41,0.19938866]
[1757242891098,2.5700206,871.74,870.41,0.19938866]
[1757242891400,2.5700206,871.73,870.41,0.19938866]
[1757242891901,2.5700206,871.72,870.41,0.19938866]
[1757242892499,2.5700206,871.7,870.41,0.19938866]
[1757242893399,2.5700206,871.69,870.41,0.19938866]
[1757242894504,2.5700206,871.68,870.41,0.19938866]
[1757242895205,2.5700206,871.67,870.41,0.19938866]
[1757242895603,2.5700206,871.65,870.41,0.19938866]
[1757242896307,2.5700206,871.64,870.41,0.19938866]
[1757242896703,2.5700206,871.63,870.41,0.19938866]
[1757242897204,2.5700206,871.62,870.41,0.19938866]
[1757242898209,2.5700206,871.67,870.41,0.19938866]
[1757242898705,2.5700206,871.66,870.41,0.19938866]
[1757242900212,2.5700206,871.72,870.41,0.19938866]
[1757242900712,2.5700206,871.61,870.41,0.19938866]
[1757242901413,2.5700206,871.59,870.41,0.19938866]
[1757242901813,2.5700206,871.62,870.41,0.19938866]
[1757242902915,2.5700206,871.84,870.41,0.19938866]
[1757242903415,2.5700206,871.83,870.41,0.19938866]
[1757242904514,2.5700206,871.93,870.41,0.19938866]
[1757242905416,2.5700206,872.19,870.41,0.19938866]
[1757242907019,2.5700206,872.18,870.41,0.19938866]
[1757242907614,2.5700206,872.19,870.41,0.19938866]
[1757242908017,2.5700206,872.18,870.41,0.19938866]
[1757242908616,2.5700206,872.17,870.41,0.19938866]
[1757242909715,2.5700206,872.15,870.41,0.19938866]
[1757242910114,2.5700206,872.12,870.41,0.19938866]
[1757242911721,2.5700206,872.11,870.41,0.19938866]
[1757242912819,2.5700206,872.09,870.41,0.19938866]
[1757242913222,2.5700206,872.08,870.41,0.19938866]
[1757242914424,2.5700206,872.04,870.41,0.19938866]
[1757242915520,2.5700206,871.77,870.41,0.19938866]
[1757242916018,2.5700206,871.79,870.41,0.19938866]
[1757242916523,2.5700206,871.78,870.41,0.19938866]
[1757242917522,2.5700206,871.71,870.41,0.19938866]
[1757242918018,2.5700206,871.63,870.41,0.19938866]
[1757242918223,1.1382876,871.63,870.41,0.19938866]
[1757242919024,3.6094735,872.0,870.41,0.19938866]
[1757242919328,3.6094735,872.04,870.41,0.19938866]
[1757242920329,3.6094735,872.0,870.41,0.19938866]
[1757242921225,5.1472382,872.57,870.41,0.19938866]
[1757242921226,3.6094735,872.21,870.41,0.19938866]
[1757242922327,3.6094735,872.17,870.41,0.19938866]
[1757242923331,3.6094735,872.1,870.41,0.19938866]
[1757242924630,3.6094735,872.08,870.41,0.19938866]
[1757242926429,3.6094735,872.09,870.41,0.19938866]
[1757242927133,2.5762488,871.7,870.41,0.19938866]
[1757242927933,2.5762488,871.7,870.42,0.76030365]
[1757242928133,2.5762488,871.7,870.43,0.76030365]
[1757242928334,2.5762488,871.9,870.44,0.76030365]
[1757242928632,2.5762488,871.9,870.45,0.76030365]
[1757242928830,2.5762488,871.9,870.46,0.76030365]
[1757242929033,2.5762488,871.9,870.47,0.76030365]
[1757242929232,2.5762488,871.9,870.48,0.76030365]
[1757242929434,2.5762488,871.9,870.41,0.19938866]
[1757242929631,2.5762488,871.9,870.42,0.76028909]
[1757242929831,2.5762488,871.9,870.43,0.76028909]
[1757242930031,2.5762488,871.9,870.44,0.76028909]
[1757242930235,2.5762488,871.9,870.45,0.76028909]
[1757242930435,2.5762488,871.9,870.46,0.76028909]
[1757242930636,2.5762488,871.9,870.47,0.76029772]
[1757242930937,2.5762488,871.91,870.48,0.76029772]
[1757242931138,2.5762488,871.91,870.41,0.19938866]
[1757242931338,2.5762488,871.91,870.42,0.76029843]
[1757242931538,2.5762488,871.75,870.43,0.76029843]
[1757242931735,2.5762488,871.75,870.44,0.76029843]
[1757242931938,2.5762488,871.74,870.45,0.76029843]
[1757242932139,2.5762488,871.74,870.41,0.19938866]
[1757242932340,2.5762488,871.74,870.42,0.75449886]
[1757242932636,2.5762488,871.74,870.43,0.75449886]
[1757242932840,2.5762488,871.74,870.44,0.75449886]
[1757242933040,2.5762488,871.74,870.45,0.75449886]
[1757242933341,2.5762488,871.74,870.41,0.19938866]
[1757242933537,2.5762488,871.67,870.42,0.75451942]
[1757242933837,2.5762488,871.67,870.43,0.75451942]
[1757242934036,2.5762488,871.68,870.44,0.75451942]
[1757242934238,2.5762488,871.68,870.45,0.75451942]
[1757242934435,2.5762488,871.68,870.41,0.19938866]
[1757242934635,2.5762488,871.68,870.42,0.7545322]
[1757242934841,2.5762488,871.68,870.43,0.7545322]
[1757242935137,2.5762488,871.69,870.44,0.7545322]
[1757242935441,2.5762488,871.69,870.45,0.7545322]
[1757242935741,2.5762488,871.68,870.41,0.19938866]
[1757242935938,2.5762488,871.68,870.42,0.75454665]
[1757242936138,2.5762488,871.68,870.43,0.75454665]
[1757242936342,2.5762488,871.68,870.44,0.75454665]
[1757242936541,2.5762488,871.89,870.41,0.19938866]
[1757242936735,0.89277243,871.88,870.41,0.19938866]
[1757242936940,2.5762488,871.89,870.41,0.19938866]
[1757242937240,2.5762488,871.81,870.41,0.19938866]
[1757242937637,2.5762488,871.9,870.41,0.19938866]
[1757242938138,1.5423156,870.72,870.41,0.19938866]
[1757242938836,1.5423156,870.71,870.41,0.19938866]
[1757242939241,1.5423156,870.74,870.41,0.19938866]
[1757242941141,1.5423156,870.76,870.41,0.19938866]
[1757242941841,1.5423156,870.75,870.41,0.19938866]
[1757242942238,1.5423156,870.78,870.41,0.19938866]
[1757242942941,1.5423156,870.74,870.41,0.19938866]
[1757242943243,1.5423156,870.77,870.41,0.19938866]
[1757242943540,1.5423156,870.78,870.41,0.19938866]
[1757242943739,1.5423156,870.75,870.41,0.19938866]
[1757242943935,1.5423156,870.76,870.41,0.19938866]
[1757242944138,1.5423156,870.79,870.41,0.19938866]
[1757242944643,1.5423156,870.69,870.41,0.19938866]
[1757242945143,1.5423156,870.71,870.41,0.19938866]
[1757242945442,1.5423156,870.72,870.41,0.19938866]
[1757242945943,1.5423156,870.74,870.41,0.19938866]
[1757242946140,1.5423156,870.76,870.41,0.19938866]
[1757242946539,1.5423156,870.82,870.41,0.19938866]
[1757242947142,1.5423156,870.84,870.41,0.19938866]
[1757242947842,1.5423156,870.9,870.41,0.19938866]
[1757242948246,1.5423156,870.91,870.41,0.19938866]
[1757242949245,1.5423156,870.93,870.41,0.19938866]
[1757242950046,1.5423156,870.96,870.41,0.19938866]
[1757242950243,1.5423156,870.97,870.41,0.19938866]
[1757242950442,1.5423156,870.98,870.41,0.19938866]
[1757242951246,1.5423156,870.99,870.41,0.19938866]
[1757242951446,1.5423156,871.0,870.41,0.19938866]
[1757242952142,1.5423156,871.01,870.41,0.19938866]
[1757242952949,1.5423156,870.99,870.41,0.19938866]
[1757242953248,1.5423156,871.0,870.41,0.19938866]
[1757242953746,1.5423156,870.99,870.41,0.19938866]
[1757242954248,1.5423156,871.0,870.41,0.19938866]
[1757242955145,1.5423156,871.01,870.41,0.19938866]
[1757242955849,1.5423156,871.0,870.41,0.19938866]
[1757242956251,1.5423156,870.93,870.41,0.19938866]
[1757242957152,1.5423156,870.94,870.41,0.19938866]
[1757242957955,1.5423156,870.87,870.41,0.19938866]
[1757242958756,1.5423156,871.0,870.41,0.19938866]
[1757242959451,1.5423156,871.01,870.41,0.19938866]
[1757242959757,1.5423156,870.98,870.41,0.19938866]
[1757242961153,1.5423156,870.99,870.41,0.19938866]
[1757242963258,1.5423156,871.0,870.41,0.19938866]
[1757242964059,1.5423156,871.02,870.41,0.19938866]
[1757242965160,1.5423156,871.01,870.41,0.19938866]
[1757242966362,1.5423156,871.0,870.41,0.19938866]
[1757242966961,1.5423156,871.04,870.41,0.19938866]
[1757242967161,1.5423156,870.99,870.41,0.19938866]
[1757242967960,1.5423156,871.16,870.41,0.19938866]
[1757242968662,1.5423156,871.1,870.41,0.19938866]
[1757242968962,1.5423156,871.07,870.41,0.19938866]
[1757242971658,1.5423156,871.06,870.41,0.19938866]
[1757242973360,1.5423156,871.05,870.41,0.19938866]
[1757242973562,1.5423156,871.01,870.41,0.19938866]
[1757242974464,1.5423156,871.02,870.41,0.19938866]
[1757242974661,1.5423156,870.99,870.41,0.19938866]
[1757242976365,1.5423156,870.98,870.41,0.19938866]
[1757242977462,1.5423156,870.97,870.41,0.19938866]
[1757242977966,1.5423156,870.76,870.41,0.19938866]
[1757242978265,1.5423156,870.81,870.41,0.19938866]
[1757242978463,1.5423156,870.8,870.41,0.19938866]
[1757242979162,1.5423156,870.81,870.41,0.19938866]
[1757242979363,1.5423156,870.8,870.41,0.19938866]
[1757242979763,1.5423156,870.81,870.41,0.19938866]
[1757242981466,1.5423156,870.8,870.41,0.19938866]
[1757242982469,1.5423156,870.81,870.41,0.19938866]
[1757242983267,1.5423156,870.8,870.41,0.19938866]
[1757242984165,1.5423156,870.73,870.41,0.19938866]
[1757242984569,1.5423156,870.74,870.41,0.19938866]
[1757242985169,1.5423156,870.73,870.41,0.19938866]
[1757242986169,1.5423156,870.71,870.41,0.19938866]
[1757242987171,1.5423156,870.69,870.41,0.19938866]
[1757242987370,1.5423156,870.63,870.41,0.19938866]
[1757242988071,1.5423156,870.64,870.41,0.19938866]
[1757242988268,1.5423156,870.62,870.41,0.19938866]
[1757242989068,1.5423156,870.59,870.41,0.19938866]
[1757242989672,1.5423156,870.57,870.41,0.19938866]
[1757242990274,1.5423156,870.54,870.41,0.19938866]
[1757242991173,1.5423156,870.46,870.41,0.19938866]
[1757242991574,1.5423156,870.45,870.41,0.19938866]
[1757242992279,2.5762488,871.1,870.41,0.19938866]
[1757242992473,1.5385458,870.51,870.41,0.19938866]
[1757242993282,1.5385458,870.46,870.41,0.19938866]
[1757242994381,2.5762488,871.29,870.41,0.19938866]
[1757242994879,2.5762488,871.26,870.41,0.19938866]
[1757242995379,2.5762488,871.22,870.41,0.19938866]
[1757242995884,2.5762488,871.3,870.41,0.19938866]
[1757242996385,2.5762488,871.26,870.41,0.19938866]
[1757242998084,2.5762488,871.25,870.41,0.19938866]
[1757242999087,2.5762488,871.26,870.41,0.19938866]
[1757243001085,2.5762488,871.25,870.41,0.19938866]
[1757243002088,2.5762488,871.34,870.41,0.19938866]
[1757243002286,1.542588,870.73,870.41,0.19938866]
[1757243005294,1.542588,870.72,870.41,0.19938866]
[1757243007089,1.542588,870.71,870.41,0.19938866]
[1757243007493,1.542588,870.74,870.41,0.19938866]
[1757243007990,2.5762488,871.94,870.41,0.19938866]
[1757243007991,1.542588,870.7,870.41,0.19938866]
[1757243008494,1.542588,870.69,870.41,0.19938866]
[1757243010196,1.542588,870.68,870.41,0.19938866]
[1757243010492,1.542588,870.69,870.41,0.19938866]
[1757243011795,1.542588,870.68,870.41,0.19938866]
[1757243012193,1.542588,870.47,870.41,0.19938866]
[1757243012798,1.542588,870.46,870.41,0.19938866]
[1757243014694,1.542588,870.48,870.41,0.19938866]
[1757243016201,1.542588,870.47,870.41,0.19938866]
[1757243016499,1.542588,870.48,870.41,0.19938866]
[1757243017303,1.542588,870.47,870.41,0.19938866]
[1757243017600,2.5762488,871.51,870.41,0.19938866]
[1757243017803,2.5762488,871.33,870.41,0.19938866]
[1757243018000,1.5437395,870.64,870.41,0.19938866]
[1757243018299,1.5437395,870.59,870.41,0.19938866]
[1757243018703,1.5437395,870.56,870.41,0.19938866]
[1757243018899,0.1109384,870.56,870.41,0.19938866]
[1757243019203,2.5762488,871.4,870.41,0.19938866]
[1757243019802,2.5762488,871.34,870.41,0.19938866]
[1757243020303,2.5762488,871.33,870.41,0.19938866]
[1757243020800,2.5762488,871.28,870.41,0.19938866]
[1757243022001,2.5762488,871.27,870.41,0.19938866]
[1757243022400,2.5762488,871.23,870.41,0.19938866]
[1757243022798,2.5762488,871.22,870.41,0.19938866]
[1757243024902,2.5762488,871.09,870.41,0.19938866]
[1757243025605,2.5762488,871.08,870.41,0.19938866]
[1757243026401,2.5762488,870.98,870.41,0.19938866]
[1757243027905,2.5762488,870.98,869.2,0.76723367]
[1757243028105,2.5762488,870.69,869.2,0.76723367]
[1757243028405,1.1434478,870.69,869.21,0.74175751]
[1757243028605,3.6094735,871.2,869.22,1.50899118]
[1757243028805,3.6094735,871.2,869.23,1.50899118]
[1757243029005,3.6094735,871.2,869.24,0.74175751]
[1757243029301,3.6094735,871.2,869.25,0.74175751]
[1757243029501,3.6094735,871.21,869.26,0.74175751]
[1757243029700,3.6094735,871.21,869.27,0.74175751]
[1757243029901,3.6094735,871.21,869.28,0.74175751]
[1757243030104,3.6094735,871.21,869.29,0.74175751]
[1757243030305,3.6094735,871.21,869.3,0.74175751]
[1757243030506,3.6094735,871.16,869.31,0.74175751]
[1757243030806,3.6094735,871.16,869.18,0.76723367]
[1757243030807,3.6094735,871.16,869.32,0.74175751]
[1757243031008,3.6094735,871.16,869.33,0.74175751]
[1757243031208,3.6094735,871.16,869.77,0.19962771]
[1757243032509,3.6094735,871.15,869.77,0.19962771]
[1757243033509,3.6094735,871.14,869.77,0.19962771]
[1757243036710,3.6094735,871.13,869.77,0.19962771]
[1757243037315,2.576288,870.79,869.77,0.19962771]
[1757243038215,1.143487,870.79,869.77,0.19962771]
[1757243038411,2.5763118,870.69,869.77,0.19962771]
[1757243038615,3.6094735,871.13,869.77,0.19962771]
[1757243038815,3.6094735,870.97,869.77,0.19962771]
[1757243039814,5.1472382,871.55,869.77,0.19962771]
[1757243041219,3.6094735,871.64,869.77,0.19962771]
[1757243041820,3.6094735,871.58,869.77,0.19962771]
[1757243042915,3.6094735,871.6,869.77,0.19962771]
[1757243043918,3.6094735,871.58,869.77,0.19962771]
[1757243046016,3.6094735,871.59,869.77,0.19962771]
[1757243047124,3.6094735,871.66,869.77,0.19962771]
[1757243047521,2.5765498,871.26,869.77,0.19962771]
[1757243048226,2.5765498,871.22,869.77,0.19962771]
[1757243049224,2.5765498,871.09,869.77,0.19962771]
[1757243050126,2.5765498,871.03,869.77,0.19962771]
[1757243052223,2.5765498,870.99,869.77,0.19962771]
[1757243056634,1.1437367,870.99,869.77,0.19962771]
[1757243057038,3.6094735,871.36,869.77,0.19962771]
[1757243057536,3.6094735,871.14,869.77,0.19962771]
[1757243057937,3.6094735,871.14,869.78,0.76549409]
[1757243058239,3.6094735,871.14,869.79,0.76549409]
[1757243058439,3.6094735,871.14,869.8,0.76549409]
[1757243058739,5.1472382,871.64,869.77,0.19962771]
[1757243059036,5.1472382,871.64,869.78,0.74667819]
[1757243059235,5.1472382,871.64,869.79,0.74667819]
[1757243059438,5.1472382,871.64,869.8,0.74667819]
[1757243059740,5.1472382,871.64,869.77,0.19962771]
[1757243060039,0.19961339,871.76,869.78,0.74659628]
[1757243060240,0.92607431,871.75,869.79,0.74659628]
[1757243060439,0.92607431,871.74,869.77,0.19962771]
[1757243060640,0.92607431,871.73,869.78,0.74653686]
[1757243060835,0.92607431,871.72,869.79,0.74653686]
[1757243061037,0.92607431,871.71,869.77,0.19962771]
[1757243061239,0.92607431,871.7,869.78,0.7464551]
[1757243061439,0.92607431,871.69,869.79,0.7464551]
[1757243061638,0.19961339,871.76,869.77,0.19962771]
[1757243061836,0.92596423,871.75,869.78,0.7464841]
[1757243062040,0.92596423,871.74,869.79,0.7464841]
[1757243062238,0.92596423,871.73,869.77,0.19962771]
[1757243062439,0.92596423,871.72,869.78,0.74640603]
[1757243062739,0.92596423,871.71,869.79,0.74640603]
[1757243062939,0.92596423,871.7,869.77,0.19962771]
[1757243063243,0.92596423,871.69,869.78,0.74640603]
[1757243063443,0.19961339,871.76,869.77,0.19962771]
[1757243063640,0.92583419,871.75,869.78,0.74633922]
[1757243063840,0.92583419,871.74,869.77,0.19962771]
[1757243064041,0.92583419,871.73,869.78,0.74633922]
[1757243064242,0.92583419,871.72,869.77,0.19962771]
[1757243064445,0.92583419,871.71,869.78,0.7462807]
[1757243064642,0.92583419,871.7,869.77,0.19962771]
[1757243064843,0.19961339,871.76,869.78,0.74629229]
[1757243065048,0.92577771,871.75,869.77,0.19962771]
[1757243065248,0.92577771,871.74,869.77,0.19962771]
[1757243065548,0.92577771,871.73,869.77,0.19962771]
[1757243065744,2.5766443,871.46,869.77,0.19962771]
[1757243066748,2.5766443,871.36,869.77,0.19962771]
[1757243068246,2.5766443,870.78,869.77,0.19962771]
[1757243068850,2.5766443,870.79,869.77,0.19962771]
[1757243069353,2.5766443,870.8,869.77,0.19962771]
[1757243069850,2.5766443,870.79,869.77,0.19962771]
[1757243070453,2.5766443,870.74,869.77,0.19962771]
[1757243070950,2.5766443,870.79,869.77,0.19962771]
[1757243071354,2.5766443,870.78,869.77,0.19962771]
[1757243071950,2.5766443,870.77,869.77,0.19962771]
[1757243075153,2.5766443,870.69,869.77,0.19962771]
[1757243075550,2.5766443,870.7,869.77,0.19962771]
[1757243076553,2.5766443,870.65,869.77,0.19962771]
[1757243077158,2.5766443,870.67,869.77,0.19962771]
[1757243078153,2.5766443,870.78,869.77,0.19962771]
[1757243078660,2.5766443,870.77,869.77,0.19962771]
[1757243079256,2.5766443,871.01,869.77,0.19962771]
[1757243080857,2.5766443,870.99,869.77,0.19962771]
[1757243083862,2.5766443,871.0,869.77,0.19962771]
[1757243084362,2.5766443,871.01,869.77,0.19962771]
[1757243085462,2.5766443,871.0,869.77,0.19962771]
[1757243087067,2.5766443,871.01,869.77,0.19962771]
[1757243088164,2.5766443,870.98,869.77,0.19962771]
[1757243089265,2.5766443,870.75,869.77,0.19962771]
[1757243089464,3.6094735,871.36,869.77,0.19962771]
[1757243089662,3.6094735,871.08,869.77,0.19962771]
[1757243090666,3.6094735,871.15,869.77,0.19962771]
[1757243091872,3.6094735,871.14,869.77,0.19962771]
[1757243092870,3.6094735,871.29,869.77,0.19962771]
[1757243093872,0.19961339,871.76,869.77,0.19962771]
[1757243098376,1.68034435,871.75,869.77,0.19962771]
[1757243098575,2.57342224,871.61,869.77,0.19962771]
[1757243098874,0.92997708,871.6,869.77,0.19962771]
[1757243099072,0.92997708,871.59,869.77,0.19962771]
[1757243099273,0.92997708,871.58,869.77,0.19962771]
[1757243099474,0.92997708,871.57,869.77,0.19962771]
[1757243099673,0.92997708,871.56,869.77,0.19962771]
[1757243099977,0.92997708,871.55,869.77,0.19962771]
[1757243100276,0.92997708,871.54,869.77,0.19962771]
[1757243100474,0.92997708,871.53,869.77,0.19962771]
[1757243100672,0.92997708,871.52,869.77,0.19962771]
[1757243100872,0.92997708,871.51,869.77,0.19962771]
[1757243101076,2.57342224,871.62,869.77,0.19962771]
[1757243101276,0.92997661,871.61,869.77,0.19962771]
[1757243101475,0.92997661,871.6,869.77,0.19962771]
[1757243101674,0.92997661,871.59,869.77,0.19962771]
[1757243101873,2.57342224,871.62,869.77,0.19962771]
[1757243101874,0.92997661,871.58,869.77,0.19962771]
[1757243102074,0.92997661,871.57,869.77,0.19962771]
[1757243102273,0.92997661,871.56,869.77,0.19962771]
[1757243102478,0.92997661,871.55,869.77,0.19962771]
[1757243102677,0.92997661,871.54,869.77,0.19962771]
[1757243102874,0.92997661,871.53,869.77,0.19962771]
[1757243103075,0.92997661,871.52,869.77,0.19962771]
[1757243103376,0.92997661,871.51,869.77,0.19962771]
[1757243103578,0.92997661,871.5,869.77,0.19962771]
[1757243103773,2.57342224,871.23,869.77,0.19962771]
[1757243104280,2.57342224,871.24,869.77,0.19962771]
[1757243104777,3.6094735,871.71,869.77,0.19962771]
[1757243104778,2.57342224,871.14,869.77,0.19962771]
[1757243105180,2.57342224,870.97,869.77,0.19962771]
[1757243105777,2.57342224,870.95,869.77,0.19962771]
[1757243107284,2.57342224,870.93,869.77,0.19962771]
[1757243107783,2.57342224,870.92,869.77,0.19962771]
[1757243108186,3.6094735,871.33,869.77,0.19962771]
[1757243108385,2.57342224,871.74,869.77,0.19962771]
[1757243108586,0.91785033,871.73,869.77,0.19962771]
[1757243108789,0.91785033,871.72,869.77,0.19962771]
[1757243108986,0.91785033,871.71,869.77,0.19962771]
[1757243109189,0.91785033,871.7,869.77,0.19962771]
[1757243109390,0.19961339,871.76,869.77,0.19962771]
[1757243109591,0.9178915,871.75,869.77,0.19962771]
[1757243109887,0.9178915,871.74,869.77,0.19962771]
[1757243110090,0.9178915,871.73,869.77,0.19962771]
[1757243110387,0.9178915,871.72,869.77,0.19962771]
[1757243110584,0.19961339,871.76,869.77,0.19962771]
[1757243110585,0.9178915,871.71,869.77,0.19962771]
[1757243110788,0.9178915,871.7,869.77,0.19962771]
[1757243110986,0.9178915,871.69,869.77,0.19962771]
[1757243111190,0.19961339,871.76,869.77,0.19962771]
[1757243111390,0.91791943,871.75,869.77,0.19962771]
[1757243111591,0.91791943,871.74,869.77,0.19962771]
[1757243111890,0.91791943,871.73,869.77,0.19962771]
[1757243112191,0.91791943,871.72,869.77,0.19962771]
[1757243112389,0.91791943,871.71,869.77,0.19962771]
[1757243112592,0.91791943,871.7,869.77,0.19962771]
[1757243112889,0.91791943,871.69,869.77,0.19962771]
[1757243113089,0.19961339,871.76,869.77,0.19962771]
[1757243113289,0.9180107,871.75,869.77,0.19962771]
[1757243113487,0.9180107,871.74,869.77,0.19962771]
[1757243113687,0.9180107,871.73,869.77,0.19962771]
[1757243113890,0.19961339,871.76,869.77,0.19962771]
[1757243114088,0.9179777,871.75,869.77,0.19962771]
[1757243114292,0.9179777,871.74,869.77,0.19962771]
[1757243114488,0.9179777,871.73,869.77,0.19962771]
[1757243114790,0.19961339,871.76,869.77,0.19962771]
[1757243114993,0.91797076,871.75,869.77,0.19962771]
[1757243115190,0.91797076,871.74,869.77,0.19962771]
[1757243115390,0.91797076,871.73,869.77,0.19962771]
[1757243115591,0.19961339,871.76,869.77,0.19962771]
[1757243115794,0.91796397,871.75,869.77,0.19962771]
[1757243116093,0.91796397,871.74,869.77,0.19962771]
[1757243116295,0.91795734,871.73,869.77,0.19962771]
[1757243116594,0.19961339,871.76,869.77,0.19962771]
[1757243116792,0.91795734,871.75,869.77,0.19962771]
[1757243116991,0.91795734,871.74,869.77,0.19962771]
[1757243117191,0.91795734,871.73,869.77,0.19962771]
[1757243117391,0.19961339,871.76,869.77,0.19962771]
[1757243117590,0.91795074,871.75,869.77,0.19962771]
[1757243117794,0.91795074,871.74,869.77,0.19962771]
[1757243117993,0.91795074,871.73,869.77,0.19962771]
[1757243118196,2.57342224,871.43,869.77,0.19962771]
[1757243118594,2.57342224,871.31,869.77,0.19962771]
[1757243119298,2.57342224,871.22,869.77,0.19962771]
[1757243120894,3.6094735,871.67,869.77,0.19962771]
[1757243120895,2.57342224,871.21,869.77,0.19962771]
[1757243123395,2.57342224,871.1,869.77,0.19962771]
[1757243124101,2.57342224,870.92,869.77,0.19962771]
[1757243126505,2.57342224,870.91,869.77,0.19962771]
[1757243127004,2.57342224,870.89,869.77,0.19962771]
[1757243127398,2.57342224,870.75,869.77,0.19962771]
[1757243128000,2.57342224,870.86,869.77,0.19962771]
[1757243129004,2.57342224,870.83,869.77,0.19962771]
[1757243130710,2.57342224,870.82,869.77,0.19962771]
[1757243132209,2.57342224,870.89,869.77,0.19962771]
[1757243132706,2.57342224,870.9,869.77,0.19962771]
[1757243134906,2.57342224,870.86,869.77,0.19962771]
[1757243135911,2.57342224,870.89,869.77,0.19962771]
[1757243138510,2.57342224,870.83,869.77,0.19962771]
[1757243139011,2.57342224,870.97,869.77,0.19962771]
[1757243140014,2.57342224,871.05,869.77,0.19962771]
[1757243142114,3.6094735,871.46,869.77,0.19962771]
[1757243142115,2.57342224,871.0,869.77,0.19962771]
[1757243142611,2.57342224,870.98,869.77,0.19962771]
[1757243143114,2.57342224,870.96,869.77,0.19962771]
[1757243145719,2.57342224,870.94,869.77,0.19962771]
[1757243146220,2.57342224,871.03,869.77,0.19962771]
[1757243148520,2.57342224,871.18,869.77,0.19962771]
[1757243148922,2.57342224,871.1,869.77,0.19962771]
[1757243149920,2.57342224,871.43,869.77,0.19962771]
[1757243151023,2.57342224,871.44,869.77,0.19962771]
[1757243153019,2.57342224,871.42,869.77,0.19962771]
[1757243154023,2.57342224,871.51,869.77,0.19962771]
[1757243156222,2.57342224,871.48,869.77,0.19962771]